fUSD/lending_fUSD_20260313
["ID","MTS","AMOUNT","RATE_DAILY","PERIOD"]
[408336615,1773442248302,-150.0,0.00047553,120]
[408336616,1773442248312,-211.58883705,0.00047553,120]
[408336617,1773442248321,-150.0,0.00047553,120]
[408336618,1773442248330,-150.0,0.00047553,120]
[408336619,1773442248339,-150.0,0.00047553,120]
[408336620,1773442248348,-150.0,0.00047553,120]
[408336621,1773442248358,-150.0,0.00047553,120]
[408336622,1773442248367,-153.55983089,0.00047553,120]
[408336623,1773442248377,-150.0,0.00047553,120]
[408336624,1773442248387,-714.0,0.00047553,2]
[408336625,1773442248396,-714.0,0.00047553,2]
[408336626,1773442248405,-714.0,0.00047553,2]
[408336627,1773442248414,-150.0,0.00047553,120]
[408336628,1773442248423,-714.0,0.00047553,2]
[408336629,1773442248432,-714.0,0.00047553,2]
[408336630,1773442248441,-714.0,0.00047553,2]
[408336631,1773442248451,-160.19591819,0.00047553,120]
[408336632,1773442248460,-714.0,0.00047553,2]
[408336633,1773442248470,-714.0,0.00047553,2]
[408336634,1773442248479,-150.0,0.00047553,120]
[408336635,1773442248489,-714.0,0.00047553,2]
[408336636,1773442248498,-714.0,0.00047553,2]
[408336637,1773442248508,-714.0,0.00047553,2]
[408336638,1773442248517,-714.0,0.00047553,2]
[408336639,1773442248527,-150.0,0.00047553,120]
[408336640,1773442248536,-714.0,0.00047553,2]
[408336641,1773442248545,-150.0,0.00047553,120]
[408336642,1773442248555,-500.0,0.00047553,120]
[408336643,1773442248564,-500.0,0.00047553,120]
[408336644,1773442248574,-207.07135591,0.00047553,120]
[408336645,1773442248582,-500.0,0.00047553,120]
[408336646,1773442248592,-634.41211342,0.00047553,120]
[408336647,1773442248601,-714.0,0.00047553,2]
[408336648,1773442248610,-714.0,0.00047553,2]
[408336649,1773442248625,-714.0,0.00047553,2]
[408336650,1773442248633,-714.0,0.00047553,2]
[408336651,1773442248642,-714.0,0.00047553,2]
[408336652,1773442248652,-500.0,0.00047553,120]
[408336653,1773442248663,-714.0,0.00047553,2]
[408336654,1773442248675,-500.0,0.00047553,120]
[408336655,1773442248684,-714.0,0.00047553,2]
[408336656,1773442248694,-714.0,0.00047553,2]
[408336657,1773442248703,-500.0,0.00047553,120]
[408336658,1773442248712,-714.0,0.00047553,2]
[408336659,1773442248721,-714.0,0.00047553,2]
[408336660,1773442248731,-724.18411228,0.00047553,2]
[408336661,1773442248740,-500.0,0.00047553,120]
[408336662,1773442248750,-500.0,0.00047553,120]
[408336663,1773442248759,-500.0,0.00047553,120]
[408336664,1773442248768,-500.0,0.00047553,120]
[408336665,1773442248777,-500.0,0.00047553,120]
[408336666,1773442248786,-500.0,0.00047553,120]
[408336667,1773442248796,-500.0,0.00047553,120]
[408336668,1773442248805,-500.0,0.00047553,120]
[408336669,1773442248814,-500.0,0.00047553,120]
[408336670,1773442248823,-500.0,0.00047553,120]
[408336671,1773442248832,-500.0,0.00047553,120]
[408336672,1773442248842,-500.0,0.00047553,120]
[408336673,1773442248851,-500.0,0.00047553,120]
[408336674,1773442248860,-500.0,0.00047553,120]
[408336675,1773442248869,-500.0,0.00047553,120]
[408336676,1773442248878,-500.0,0.00047553,120]
[408336677,1773442248887,-275.92593755,0.00047553,120]
[408336678,1773442248896,-150.0,0.00047553,17]
[408336679,1773442248905,-150.0,0.00047553,17]
[408336680,1773442248914,-150.0,0.00047553,17]
[408336681,1773442248923,-150.0,0.00047553,17]
[408336682,1773442248932,-150.0,0.00047553,120]
[408336683,1773442248941,-250.0,0.00047553,120]
[408336684,1773442248950,-250.0,0.00047553,120]
[408336685,1773442248959,-150.0,0.00047553,120]
[408336686,1773442248968,-500.0,0.00047553,120]
[408336687,1773442248977,-150.0,0.00047553,120]
[408336688,1773442248987,-150.0,0.00047553,120]
[408336689,1773442248996,-500.0,0.00047553,120]
[408336690,1773442249005,-261.14236726,0.00047553,120]
[408336691,1773442249014,-150.0,0.00047553,120]
[408336692,1773442249024,-500.0,0.00047553,120]
[408336693,1773442249033,-500.0,0.00047553,120]
[408336694,1773442249044,-500.0,0.00047553,120]
[408336695,1773442249053,-647.17317283,0.00047553,120]
[408336696,1773442249063,-150.0,0.00047553,2]
[408336697,1773442249072,-150.0,0.00047553,2]
[408336698,1773442249081,-150.0,0.00047553,2]
[408336699,1773442249091,-150.0,0.00047553,120]
[408336700,1773442249100,-150.0,0.00047553,120]
[408336701,1773442249109,-200.0,0.00047553,120]
[408336702,1773442249118,-500.0,0.00047553,120]
[408336703,1773442249128,-550.0,0.00047553,120]
[408336704,1773442249137,-150.0,0.00047581,60]
[408336705,1773442249147,-150.0,0.00047581,60]
[408336706,1773442249156,-268.73448214,0.00047581,60]
[408336707,1773442249165,-150.0,0.00047602,120]
[408336708,1773442249174,-292.42,0.00047672,7]
[408336709,1773442249183,-12572.1,0.00047681,7]
[408336710,1773442249193,-200.0,0.00047681,2]
[408336711,1773442249202,-500.0,0.00047681,120]
[408336712,1773442249211,-40603.03613037,0.00047681,120]
[408336713,1773442249220,-155.0,0.00047681,2]
[408336714,1773442249229,-155.0,0.00047681,2]
[408336715,1773442249238,-155.0,0.00047681,2]
[408336716,1773442249248,-155.0,0.00047681,2]
[408336717,1773442249257,-155.0,0.00047681,2]
[408336718,1773442249267,-155.0,0.00047681,2]
[408336719,1773442249276,-155.0,0.00047681,2]
[408336720,1773442249286,-155.0,0.00047681,2]
[408336721,1773442249295,-155.0,0.00047681,2]
[408336722,1773442249304,-201.44924866,0.00047681,2]
[408336723,1773442249313,-150.0,0.00047681,2]
[408336724,1773442249322,-874.03,0.00047681,2]
[408336725,1773442249332,-874.03,0.00047681,2]
[408336726,1773442249341,-874.03,0.00047681,2]
[408336727,1773442249351,-874.03,0.00047681,2]
[408336728,1773442249360,-874.03,0.00047681,2]
[408336729,1773442249369,-874.03,0.00047681,2]
[408336730,1773442249379,-874.03,0.00047681,2]
[408336731,1773442249388,-874.03,0.00047681,2]
[408336732,1773442249398,-874.03,0.00047681,2]
[408336733,1773442249408,-874.03,0.00047681,2]
[408336734,1773442249417,-874.03,0.00047681,2]
[408336735,1773442249427,-874.03,0.00047681,2]
[408336736,1773442249436,-874.03,0.00047681,2]
[408336737,1773442249446,-874.03,0.00047681,2]
[408336738,1773442249455,-874.03,0.00047681,2]
[408336739,1773442249465,-874.03,0.00047681,2]
[408336740,1773442249475,-874.03,0.00047681,2]
[408336741,1773442249484,-874.03,0.00047681,2]
[408336742,1773442249494,-874.03,0.00047681,2]
[408336743,1773442249503,-874.03,0.00047681,2]
[408336744,1773442249513,-874.03,0.00047681,2]
[408336745,1773442249523,-874.03,0.00047681,2]
[408336746,1773442249532,-874.03,0.00047681,2]
[408336747,1773442249541,-874.22356878,0.00047681,2]
[408336748,1773442249550,-619.49,0.00047681,2]
[408336749,1773442249559,-619.49,0.00047681,2]
[408336750,1773442249568,-619.49,0.00047681,2]
[408336751,1773442249578,-619.49,0.00047681,2]
[408336752,1773442249587,-619.49,0.00047681,2]
[408336753,1773442249596,-619.49,0.00047681,2]
[408336754,1773442249605,-619.49,0.00047681,2]
[408336755,1773442249614,-619.49,0.00047681,2]
[408336756,1773442249628,-619.49,0.00047681,2]
[408336757,1773442249638,-619.49,0.00047681,2]
[408336758,1773442249646,-619.49,0.00047681,2]
[408336759,1773442249656,-619.49,0.00047681,2]
[408336760,1773442249665,-619.49,0.00047681,2]
[408336761,1773442249674,-619.49,0.00047681,2]
[408336762,1773442249683,-619.49,0.00047681,2]
[408336763,1773442249693,-619.49,0.00047681,2]
[408336764,1773442249703,-619.49,0.00047681,2]
[408336765,1773442249712,-619.49,0.00047681,2]
[408336766,1773442249722,-619.49,0.00047681,2]
[408336767,1773442249731,-619.49,0.00047681,2]
[408336768,1773442249740,-619.49,0.00047681,2]
[408336769,1773442249749,-619.49,0.00047681,2]
[408336770,1773442249758,-619.49,0.00047681,2]
[408336771,1773442249767,-619.5213042,0.00047681,2]
[408336772,1773442249776,-7924.13,0.0004769,120]
[408336773,1773442249786,-774.3989,0.000478,2]
[408336774,1773442249796,-2000.0,0.000478,2]
[408336775,1773442249805,-4231.62244648,0.00047821,2]
[408336776,1773442249814,-2406.42,0.0004783,2]
[408336777,1773442249823,-200.0,0.00048,120]
[408336778,1773442249832,-7924.13,0.00048053,120]
[408336779,1773442249841,-858.0632,0.000481,2]
[408336780,1773442249850,-506.0,0.00048215,23]
[408336781,1773442249895,-156.6,0.00048348,120]
[408336782,1773442249904,-195.89,0.00048348,120]
[408336783,1773442249914,-950.7665,0.000484,2]
[408336784,1773442249923,-2000.0,0.000484,17]
[408336785,1773442249933,-7924.13,0.00048417,120]
[408336786,1773442249942,-440.19275971,0.00048493,7]
[408336787,1773442249952,-5000.0,0.000485,120]
[408336788,1773442249961,-3000.0,0.000485,17]
[408336789,1773442249971,-4100.0,0.000486,17]
[408336790,1773442249980,-258.73962788,0.00048679,30]
[408336791,1773442249989,-500.0,0.00048681,2]
[408336792,1773442249999,-500.0,0.00048681,2]
[408336793,1773442250008,-500.0,0.00048681,2]
[408336794,1773442250019,-500.0,0.00048681,2]
[408336795,1773442250036,-500.0,0.00048681,2]
[408336796,1773442250047,-500.0,0.00048681,2]
[408336797,1773442250056,-500.0,0.00048681,2]
[408336798,1773442250066,-500.0,0.00048681,2]
[408336799,1773442250076,-500.0,0.00048681,2]
[408336800,1773442250086,-500.0,0.00048681,2]
[408336801,1773442250095,-500.0,0.00048681,2]
[408336802,1773442250104,-500.0,0.00048681,2]
[408336803,1773442250114,-527.0,0.00048681,2]
[408336804,1773442250123,-1053.4853,0.000487,2]
[408336805,1773442250132,-5100.0,0.000487,17]
[408336806,1773442250141,-5000.0,0.0004873,120]
[408336807,1773442250150,-350.0,0.00048763,13]
[408336808,1773442250159,-7924.13,0.0004878,120]
[408336809,1773442250169,-500.0,0.00048799,120]
[408336810,1773442250178,-500.0,0.00048799,10]
[408336811,1773442250188,-1000.0,0.000488,17]
[408336812,1773442250198,-350.0,0.00048886,10]
[408336813,1773442250207,-4231.62244648,0.00048898,2]
[408336814,1773442250216,-175.32047108,0.000489,120]
[408336815,1773442250225,-1000.0,0.000489,17]
[408336816,1773442250234,-350.0,0.00048952,12]
[408336817,1773442250244,-198.88319629,0.0004899,7]
[408336818,1773442250253,-1167.3016,0.00049,2]
[408336819,1773442250262,-69988.07200299,0.00049,30]
[408336820,1773442250271,-973.43027,0.00049,45]
[408336821,1773442250284,-6093.02147,0.00049,30]
[408336822,1773442250294,-100528.55167,0.00049,60]
[408336823,1773442250303,-7924.13,0.00049144,120]
[408336824,1773442250313,-171.07648682,0.00049265,120]
[408336825,1773442250322,-150.0,0.00049299,2]
[408336826,1773442250330,-1293.4144,0.000493,2]
[408336827,1773442250339,-161.4,0.000493,120]
[408336828,1773442250348,-175.38043,0.000493,120]
[408336829,1773442250356,-175.38043,0.000493,120]
[408336830,1773442250365,-175.38043,0.000493,120]
[408336831,1773442250374,-175.38043,0.000493,120]
[408336832,1773442250384,-175.38043,0.000493,120]
[408336833,1773442250394,-175.38044,0.000493,120]
[408336834,1773442250403,-2000.0,0.00049314,120]
[408336835,1773442250413,-2000.0,0.00049314,120]
[408336836,1773442250422,-2000.0,0.00049314,120]
[408336837,1773442250432,-2000.0,0.00049314,120]
[408336838,1773442250441,-2000.0,0.00049314,120]
[408336839,1773442250451,-2000.0,0.00049314,120]
[408336840,1773442250462,-2000.0,0.00049314,120]
[408336841,1773442250471,-2000.0,0.00049314,120]
[408336842,1773442250481,-2000.0,0.00049314,120]
[408336843,1773442250490,-2000.0,0.00049314,120]
[408336844,1773442250500,-2000.0,0.00049314,120]
[408336845,1773442250510,-2000.0,0.00049314,120]
[408336846,1773442250520,-297.043,0.00049314,120]
[408336847,1773442250530,-171.07648681,0.00049333,120]
[408336848,1773442250539,-728.83187359,0.0004935,120]
[408336849,1773442250548,-16883.3037242,0.00049365,2]
[408336850,1773442250557,-10653.0538812,0.00049365,2]
[408336851,1773442250567,-4607.7444606,0.00049365,2]
[408336852,1773442250576,-239.89561404,0.000494,36]
[408336853,1773442250586,-3351.33016008,0.000494,15]
[408336854,1773442250596,-171.07648681,0.000494,120]
[408336855,1773442250606,-5563.66501089,0.000494,15]
[408336856,1773442250616,-381.87874174,0.000494,2]
[408336857,1773442250631,-6361.47851702,0.000494,2]
[408336858,1773442250641,-506.0,0.00049437,24]
[408336859,1773442250650,-37212.0,0.00049479,120]
[408336860,1773442250659,-239.89561403,0.00049483,36]
[408336861,1773442250668,-350.0,0.00049489,2]
[408336862,1773442250678,-150.62015041,0.00049489,2]
[408336863,1773442250687,-500.0,0.00049489,120]
[408336864,1773442250697,-500.0,0.00049489,10]
[408336865,1773442250707,-500.0,0.00049489,10]
[408336866,1773442250716,-500.0,0.00049489,10]
[408336867,1773442250726,-150.0,0.00049489,120]
[408336868,1773442250738,-666.0,0.00049499,30]
[408336869,1773442250747,-500.0,0.00049499,2]
[408336870,1773442250758,-500.0,0.00049499,2]
[408336871,1773442250767,-500.0,0.00049499,2]
[408336872,1773442250776,-500.0,0.00049499,2]
[408336873,1773442250786,-500.0,0.00049499,2]
[408336874,1773442250795,-500.0,0.00049499,2]
[408336875,1773442250804,-500.0,0.00049499,2]
[408336876,1773442250813,-500.0,0.00049499,2]
[408336877,1773442250822,-500.0,0.00049499,2]
[408336878,1773442250831,-500.0,0.00049499,2]
[408336879,1773442250840,-500.0,0.00049499,2]
[408336880,1773442250849,-500.0,0.00049499,2]
[408336881,1773442250858,-619.94008199,0.00049499,2]
[408336882,1773442250867,-500.0,0.00049499,90]
[408336883,1773442250877,-500.0,0.00049499,90]
[408336884,1773442250886,-500.0,0.00049499,90]
[408336885,1773442250896,-500.0,0.00049499,90]
[408336886,1773442250904,-500.0,0.00049499,90]
[408336887,1773442250913,-500.0,0.00049499,90]
[408336888,1773442250922,-500.0,0.00049499,90]
[408336889,1773442250931,-500.0,0.00049499,90]
[408336890,1773442250940,-500.0,0.00049499,90]
[408336891,1773442250950,-500.0,0.00049499,90]
[408336892,1773442250959,-500.0,0.00049499,90]
[408336893,1773442250968,-500.0,0.00049499,90]
[408336894,1773442250977,-500.0,0.00049499,90]
[408336895,1773442250986,-500.0,0.00049499,90]
[408336896,1773442250996,-500.0,0.00049499,90]
[408336897,1773442251006,-219.49934,0.00049499,90]
[408336898,1773442251015,-500.0,0.00049499,10]
[408336899,1773442251024,-180.65596028,0.00049499,10]
[408336900,1773442251032,-151.0,0.00049499,120]
[408336901,1773442251041,-253.92946486,0.00049499,120]
[408336902,1773442251050,-151.0,0.00049499,120]
[408336903,1773442251059,-209.10123863,0.00049499,120]
[408336904,1773442251070,-663.0062629,0.00049499,120]
[408336905,1773442251079,-250.0,0.00049499,120]
[408336906,1773442251089,-200.0,0.00049499,120]
[408336907,1773442251098,-500.0,0.00049499,120]
[408336908,1773442251108,-151.0,0.00049499,120]
[408336909,1773442251117,-200.0,0.00049499,120]
[408336910,1773442251126,-250.0,0.00049499,120]
[408336911,1773442251135,-500.0,0.00049499,120]
[408336912,1773442251144,-156.587,0.00049499,120]
[408336913,1773442251153,-500.0,0.00049499,120]
[408336914,1773442251162,-1000.0,0.00049499,120]
[408336915,1773442251172,-1500.0,0.00049499,120]
[408336916,1773442251181,-500.0,0.00049499,120]
[408336917,1773442251190,-500.0,0.00049499,120]
[408336918,1773442251199,-1000.0,0.00049499,120]
[408336919,1773442251208,-1500.0,0.00049499,120]
[408336920,1773442251217,-2880.42275116,0.00049499,120]
[408336921,1773442251226,-500.0,0.00049499,120]
[408336922,1773442251235,-500.0,0.00049499,120]
[408336923,1773442251244,-250.0,0.00049499,120]
[408336924,1773442251253,-500.0,0.00049499,120]
[408336925,1773442251262,-500.0,0.00049499,120]
[408336926,1773442251271,-250.0,0.00049499,120]
[408336927,1773442251280,-500.0,0.00049499,120]
[408336928,1773442251289,-151.0,0.00049499,120]
[408336929,1773442251298,-372.19200456,0.00049499,120]
[408336930,1773442251308,-151.0,0.00049499,120]
[408336931,1773442251317,-500.0,0.00049499,120]
[408336932,1773442251327,-500.0,0.00049499,120]
[408336933,1773442251336,-500.0,0.00049499,120]
[408336934,1773442251345,-500.0,0.00049499,120]
[408336935,1773442251354,-500.0,0.00049499,120]
[408336936,1773442251363,-175.24266334,0.00049499,120]
[408336937,1773442251373,-500.0,0.00049499,120]
[408336938,1773442251382,-178.08835478,0.00049499,120]
[408336939,1773442251391,-500.0,0.00049499,120]
[408336940,1773442251401,-500.0,0.00049499,120]
[408336941,1773442251411,-518.5,0.00049499,120]
[408336942,1773442251420,-500.0,0.00049499,120]
[408336943,1773442251429,-500.0,0.00049499,120]
[408336944,1773442251438,-10000.0,0.00049499,120]
[408336945,1773442251447,-10000.0,0.00049499,120]
[408336946,1773442251457,-170.0,0.00049499,120]
[408336947,1773442251466,-250.0,0.00049499,120]
[408336948,1773442251476,-176.29,0.00049499,120]
[408336949,1773442251486,-1030.0,0.00049499,120]
[408336950,1773442251495,-250.0,0.00049499,120]
[408336951,1773442251506,-1068.11,0.00049499,120]
[408336952,1773442251518,-500.0,0.00049499,120]
[408336953,1773442251528,-500.0,0.00049499,120]
[408336954,1773442251538,-251.0,0.00049499,120]
[408336955,1773442251548,-260.287,0.00049499,120]
[408336956,1773442251557,-200.0,0.00049499,120]
[408336957,1773442251567,-200.0,0.00049499,120]
[408336958,1773442251576,-151.0,0.00049499,120]
[408336959,1773442251585,-1000.0,0.00049499,120]
[408336960,1773442251594,-221952.37778447,0.000495,120]
[408336961,1773442251837,-1721.10095332,0.00023012,2]
[408336962,1773442251850,-741.89904668,0.00023012,2]
[408336963,1773442251859,-681.16334782,0.00026012,2]
[408336964,1773442251874,-1781.83665218,0.00026012,2]
[408336965,1773442251883,-1000.0,0.00027397,20]
[408336966,1773442251893,-395.83906497,0.00042899,2]
[408336967,1773442251902,-151.0,0.00049499,120]
[408336968,1773442251911,-151.0,0.00049499,120]
[408336969,1773442251920,-151.0,0.00049499,120]
[408336970,1773442251929,-151.0,0.00049499,120]
[408336971,1773442251938,-11279.75177718,0.000495,120]
[408336972,1773442252096,-2050.53184452,0.00029012,2]
[408336973,1773442252108,-412.46815548,0.00029012,2]
[408336974,1773442252117,-2463.0,0.00032012,2]
[408336975,1773442252126,-2463.0,0.00035012,2]
[408336976,1773442252135,-616.0,0.00036095,30]
[408336977,1773442252144,-1332.0,0.00036095,30]
[408336978,1773442252153,-2463.0,0.00038012,2]
[408336979,1773442252162,-300.0,0.00042899,2]
[408336980,1773442252172,-361.86979702,0.00042899,2]
[408336981,1773442252181,-272.49,0.00045,30]
[408336982,1773442252190,-953.27,0.00045,30]
[408336983,1773442252199,-160.0,0.00046,120]
[408336984,1773442252209,-272.49,0.0004725,30]
[408336985,1773442252218,-953.27,0.0004725,30]
[408336986,1773442252227,-61832.51266772,0.000495,120]
[408336987,1773442252239,-16050.53804359,0.000495,120]
[408336988,1773442252271,-302.19121895,0.00041012,2]
[408336989,1773442252284,-2160.80878105,0.00041012,2]
[408336990,1773442252294,-300.00000001,0.00042899,2]
[408336991,1773442252303,-259125.53126702,0.000495,120]
[408336992,1773442266108,195.0,0.00025314,120]
[408336993,1773442266252,195.0,0.00026206,120]
[408336994,1773442268230,179.49839145,0.00025314,120]
[408336995,1773442429743,3400.0,0.00032876,120]
[408336998,1773443016777,180.12,9.775e-05,2]
[408337003,1773443217541,944.0,0.00032877,120]
[408337004,1773443231142,-250.0,0.00015,2]
[408337005,1773443231162,-250.0,0.000155,2]
[408337006,1773443231183,-81.2075308,0.00016,2]
[408337007,1773443356106,-239.7924692,0.00016,2]
[408337008,1773443356127,-250.0,0.000165,2]
[408337009,1773443356147,-2455.88,0.00016524,2]
[408337010,1773443356171,-300.0,0.00017,2]
[408337011,1773443356191,-263.27,0.00017,2]
[408337012,1773443356211,-385.13153006,0.000179,2]
[408337013,1773443384738,4043.08,0.00032877,120]
[408337014,1773443411547,1732.75,0.00032877,120]
[408337015,1773443431555,-165.33217681,0.000179,2]
[408337016,1773443431566,-1837.77769863,0.0001799,2]
[408337017,1773443431576,-7998.95693893,0.00018,2]
[408337018,1773443431588,-8487.45486187,0.00018,2]
[408337020,1773443431600,-324.01857318,0.00018,2]
[408337021,1773443431611,-621.13759098,0.00018,2]
[408337023,1773443431623,-924.05253866,0.00018,2]
[408337025,1773443431635,-935.0,0.00018,2]
[408337026,1773443431647,-1147.18000044,0.00018,2]
[408337027,1773443431668,-817.79588592,0.00018,2]
[408337029,1773443431682,-861.64940807,0.00018,2]
[408337030,1773443431696,-3298.87374977,0.00018,2]
[408337031,1773443431709,-6921.15230123,0.00018,2]
[408337032,1773443431745,-3935.87063297,0.00018,2]
[408337033,1773443431757,-9782.2711647,0.00018,2]
[408337034,1773443431769,-593.88156024,0.00018,2]
[408337035,1773443431779,-350.0,0.00019,2]
[408337036,1773443431788,-176.92617356,0.00019,2]
[408337037,1773443431800,-278.617552,0.00019,2]
[408337038,1773443431812,-2171.34160843,0.00019,2]
[408337040,1773443431822,-368.97169435,0.00019153,2]
[408337041,1773443431831,-397.0,0.00019244,2]
[408337042,1773443431842,-397.0,0.00019272,2]
[408337043,1773443431852,-166.78,0.00019277,2]
[408337044,1773443431862,-150.0,0.00019325,2]
[408337045,1773443431883,-397.0,0.0001933,2]
[408337046,1773443431895,-397.0,0.00019354,2]
[408337047,1773443431907,-171.96232106,0.000194,2]
[408337048,1773443431924,-397.0,0.00019436,2]
[408337051,1773443431935,-12006.81,0.00019438,2]
[408337053,1773443431946,-397.0,0.00019452,2]
[408337055,1773443431957,-397.0,0.00019457,2]
[408337057,1773443431967,-397.0,0.00019513,2]
[408337060,1773443431978,-180.12,0.0001955,2]
[408337062,1773443431991,-1336.89,0.00019589,2]
[408337064,1773443432002,-397.0,0.00019606,2]
[408337066,1773443432012,-397.0,0.00019661,2]
[408337068,1773443432023,-397.0,0.00019671,2]
[408337071,1773443432036,-397.0,0.00019701,2]
[408337073,1773443432048,-166.78,0.00019759,2]
[408337075,1773443432059,-8833.99161594,0.00019821,2]
[408337076,1773443432070,-397.0,0.0001986,2]
[408337077,1773443432081,-767.6529,0.000199,2]
[408337078,1773443432091,-397.0,0.00019938,2]
[408337079,1773443432102,-30076.61172661,0.0002,2]
[408337080,1773443432233,-8737.30159976,0.0002,2]
[408337081,1773443432247,-42924.26013045,0.0002,2]
[408337082,1773443432257,-187.6593844,0.00020042,2]
[408337083,1773443432268,-397.0,0.00020142,2]
[408337084,1773443432278,-166.78,0.00020241,2]
[408337085,1773443432287,-150.0,0.000204,7]
[408337086,1773443432297,-397.0,0.00020407,2]
[408337087,1773443432307,-397.0,0.00020683,2]
[408337088,1773443432318,-397.0,0.00020694,2]
[408337089,1773443432328,-166.78,0.00020723,2]
[408337090,1773443432342,-397.0,0.00020765,2]
[408337091,1773443432353,-397.0,0.00020852,2]
[408337092,1773443432363,-400.0,0.00021,2]
[408337093,1773443432374,-397.0,0.0002102,2]
[408337094,1773443432385,-397.0,0.00021026,2]
[408337095,1773443432396,-397.0,0.00021122,2]
[408337096,1773443432406,-397.0,0.00021199,2]
[408337097,1773443432417,-166.78,0.00021205,2]
[408337098,1773443432427,-397.0,0.00021235,2]
[408337099,1773443432438,-12231.99,0.00021595,2]
[408337100,1773443432450,-500.0,0.00021596,2]
[408337101,1773443432461,-5000.0,0.00021918,2]
[408337102,1773443432472,-2500.0,0.00022462,2]
[408337103,1773443432483,-516.89,0.00022562,2]
[408337104,1773443432494,-430.52,0.00022562,2]
[408337105,1773443432505,-24180.79971776,0.00022562,2]
[408337106,1773443432519,-14221.02028224,0.00022562,2]
[408337107,1773443432534,-150.99,0.00022562,2]
[408337108,1773443432545,-4999.99,0.00022562,2]
[408337109,1773443432556,-5339.1,0.00022562,2]
[408337110,1773443432567,-9999.99,0.00022562,2]
[408337111,1773443432577,-9999.99,0.00022562,2]
[408337112,1773443432587,-9336.88,0.00022562,2]
[408337113,1773443432598,-1443.96,0.00022562,2]
[408337114,1773443432608,-4406.63,0.00022562,2]
[408337115,1773443432619,-8454.95440565,0.00023207,2]
[408337116,1773443432631,-282.18559435,0.00023207,2]
[408337117,1773443432642,-32.39436137,0.00024113,2]
[408337118,1773443432655,-274.22563863,0.00024113,2]
[408337119,1773443432666,-46.43096902,0.00024658,2]
[408337120,1773443432678,-625.6194234,0.00024658,2]
[408337121,1773443432690,-327.94960758,0.00024658,2]
[408337122,1773443432701,-1185.63271338,0.00024857,2]
[408337132,1773443437709,-28.36728662,0.00024857,2]
[408337133,1773443437720,-1026.621,0.00024857,2]
[408337134,1773443437731,-340.01126898,0.00025066,2]
[408337135,1773443437884,-490.38423648,0.00025066,2]
[408337136,1773443437897,-405.71056606,0.00025066,2]
[408337147,1773443439950,-4834.33074672,0.00025066,2]
[408337152,1773443442722,-23929.56318176,0.00025066,2]
[408337153,1773443442733,-306.63903466,0.00025319,2]
[408337154,1773443442743,-500.0,0.00025592,2]
[408337155,1773443442752,-500.0,0.00025592,2]
[408337156,1773443442761,-2463.0,0.0002567,2]
[408337157,1773443442770,-414.0,0.0002567,2]
[408337158,1773443442780,-1000.0,0.00025817,2]
[408337159,1773443442789,-500.0,0.0002585,2]
[408337160,1773443442798,-235.693,0.0002588,2]
[408337161,1773443442807,-201.1,0.0002588,2]
[408337162,1773443442817,-250.0,0.0002588,2]
[408337163,1773443442826,-219.836,0.0002588,2]